Cogmind - Beta 13 X1 @@@ ROGUE MODE // 2023.06.25 @ 14:37:39 Player: Jezoensis Result: Destroyed by QJ-DUG(R) with Subdweller Machine Gun Performance ------------- Evolutions (0) 0 Regions Visited (2) 400 Robots Destroyed (34) 170 Value Destroyed (823) 823 Prototype IDs (0) 0 Alien Tech Used (0) 0 Bonus (0) 0 TOTAL SCORE: 1393 Bonus ------- None Cogmind --------- Core Integrity 0/250 Matter 14/300 Energy 100/100 System Corruption 0% Temperature Cool (0) Movement Treading (240) Ox1 Location -10/Subcaves Parts ------- > --- POWER (1) -------- (None) > --- PROPULSION (2) --- Light Treads Compact Wheel > --- UTILITY (2) ------ Large Storage Unit Structural Scanner > --- WEAPON (2) ------- Subdweller Beam Cannon Subdweller Shrapnel Launcher > --- INVENTORY (15) --- Ion Engine Compact Wheel Disposable Heat Sink Medium Storage Unit Medium Matter Pod (0) Subdweller Optics Beam Cannon Assault Rifle Battle Cannon Subdweller Shrapnel Launcher Makeshift Hammer Peak State ------------ > --- POWER ------------ Ion Engine > --- PROPULSION ------- Compact Wheel Compact Wheel > --- UTILITY ---------- Medium Storage Unit Structural Scanner > --- WEAPON ----------- Beam Cannon Makeshift Hammer > --- INVENTORY -------- Ion Engine Light Treads Disposable Heat Sink Large Storage Unit Medium Matter Pod Subdweller Optics Small Laser Light Assault Rifle Light Assault Rifle Subdweller Shrapnel Launcher [Rating: 11] Favorites ----------- Power Ion Engine Engine Ion Engine Propulsion Compact Wheel Treads Light Treads Wheel Compact Wheel Utility Structural Scanner Device Structural Scanner Storage Medium Storage Unit Weapon Small Laser Energy Gun Small Laser Energy Cannon Beam Cannon Ballistic Gun Light Assault Rifle Ballistic Cannon Battle Cannon Launcher Subdweller Shrapnel Launcher Special Weapon Mining Laser Impact Weapon Makeshift Hammer Build | -11 -10 -10 ------- Run | Jun Mat Sub Slots Evolved . | . . . Power . | . . . Propulsion . | . . . Utility . | . . . Weapon . | . . . Parts Attached 62 | 8 30 24 Power 2 | 1 1 . Engine 2 | 1 1 . Core . | . . . Reactor . | . . . Propulsion 25 | 3 14 8 Treads 9 | . 5 4 Leg . | . . . Wheel 16 | 3 9 4 Hover . | . . . Flight . | . . . Utility 14 | 2 5 7 Device 10 | 1 3 6 Storage 4 | 1 2 1 Processor . | . . . Hackware . | . . . Protection . | . . . Artifact . | . . . Weapon 21 | 2 10 9 Energy Gun 9 | 2 5 2 Energy Cannon 3 | . 1 2 Ballistic Gun 2 | . 2 . Ballistic Cannon 1 | . . 1 Launcher 2 | . . 2 Special Weapon 3 | . 2 1 Impact Weapon 1 | . . 1 Slashing Weapon . | . . . Piercing Weapon . | . . . Special Melee Weapon . | . . . Unidentified Prototypes . | . . . Parts Lost 3 | . 1 2 Power 2 | . 1 1 Propulsion 1 | . . 1 Utility . | . . . Weapon . | . . . Highest Loss Streak 1 | . 1 1 To Critical Strikes . | . . . Average Slot Usage (%) 99 | . 99 99 Engine 13 | . 13 14 Treads 3 | . 3 3 Wheel 24 | . 24 24 Device 14 | . 14 14 Storage 14 | . 14 14 Energy Gun 13 | . 20 6 Energy Cannon 5 | . . 10 Ballistic Gun 2 | . 4 . Ballistic Cannon 1 | . . 2 Launcher 3 | . . 5 Naked Turns . | . . . Heaviest Build 42 | 14 20 42 Greatest Support 32 | 26 26 32 Greatest Overweight (x) 2 | . . 2 Average Overweight (x) . | . . . Largest Inventory Capacity 15 | 8 10 15 Average Capacity 10 | 5 9 11 Most Carried 11 | 6 10 11 Average Carried 8 | 4 7 10 Final Capacity 15 | 8 10 15 Final Carried 11 | 6 10 11 Class Distribution -------------------- 100% | Mutant Dominant Class ---------------- Mutant | -10/Materials Mutant | -10/Subcaves Resources | -11 -10 -10 ----------- Run | Jun Mat Sub Matter Collected 1090 | 242 292 556 Remotely . | . . . Salvage Created 814 | 54 491 269 Parts 60 | 7 39 14 Haulers Intercepted 1 | . 1 . Recyclers Shooed 2 | . 2 . Parts Field Recycled . | . . . Retrieved Matter . | . . . Parts Self-Destructed 3 | . . 3 Prevented . | . . . Kills | -11 -10 -10 ------- Run | Jun Mat Sub Combat Hostiles Destroyed 26 | . 12 14 Guns 12 | . 11 1 Cannons 3 | . . 3 AOE 10 | . 1 9 Classes Destroyed 9 | 1 6 2 Worker 1 | . 1 . Builder 2 | . 2 . Tunneler 3 | 3 . . Hauler 1 | . 1 . Operator 1 | . 1 . Swarmer 8 | . 5 3 Grunt 7 | . 7 . Sentry 1 | . . 1 Subdweller 10 | . . 10 Best Kill Streak 6 | 3 6 4 Combat Bots Only 4 | . 4 4 Max Kills in Single Turn 3 | 1 3 2 Gunslinging . | . . . Exploded 2 | . 1 2 Melee . | . . . Uniques/NPCs Destroyed . | . . . Combat | -11 -10 -10 -------- Run | Jun Mat Sub Damage Taken 1111 | . 479 632 Core 252 | . 131 121 Absorbed by Shields . | . . . Core Remaining (%) 100 | 100 . . Volleys Fired 89 | 8 55 26 Largest 2 | 2 2 2 Hottest 120 | 90 100 120 Shots Fired 168 | 16 103 49 Gun 126 | 16 97 13 Cannon 14 | . . 14 Launcher 21 | . . 21 Special 7 | . 6 1 Kinetic 40 | . 19 21 Thermal 128 | 16 84 28 Explosive . | . . . Electromagnetic . | . . . Robot Hit Streak 18 | 5 15 18 Robot Miss Streak 5 | 1 5 1 Penetration Max . | . . . Secondary Targets 3 | . 3 . Max Gunslinging Chain 1 | . 1 . Shots Hit Robots 110 | 10 65 35 Core Hits 52 | 3 27 22 Critical Kills 1 | . . 1 Critical Parts Destroyed . | . . . Critical Strikes 6 | 2 3 1 Burn 5 | 2 3 . Meltdown 1 | . . 1 Melee Attacks 2 | . . 2 Impact 2 | . . 2 Slashing . | . . . Piercing . | . . . Sneak Attacks . | . . . Combat Hostiles . | . . . Follow-up Attacks . | . . . Damage Inflicted 3098 | 123 1090 1885 Guns 1051 | 123 822 106 Cannons 218 | . . 218 Explosions 1829 | . 268 1561 Melee . | . . . Ramming . | . . . Kinetic 1670 | . 109 1561 Thermal 1160 | 123 713 324 Explosive 268 | . 268 . Electromagnetic . | . . . Impact . | . . . Slashing . | . . . Piercing . | . . . Highest Corruption . | . . . Average Corruption . | . . . Corruption Purged . | . . . Corruption Blocked . | . . . Overload Shots . | . . . Overflow Damage 2 | . . 2 Projectiles . | . . . Explosions 2 | . . 2 Melee . | . . . Knockbacks . | . . . Impact . | . . . Kinetic . | . . . Secondary . | . . . Self-Inflicted Damage . | . . . Shots . | . . . Rammed . | . . . Targets Rammed . | . . . Kicked . | . . . Crushed . | . . . Highest Temperature 336 | 90 336 2 Average Temperature 76 | 40 82 2 Received Heat Transfer 243 | . 168 75 Effects 2 | . 2 . Matter Decay 1 | . 1 . Damage (minor) 1 | . 1 . Siege Activations . | . . . Robots Corrupted . | . . . Combat Hostiles . | . . . Parts Fried . | . . . Impact Corruptions . | . . . Robots Melted 1 | . . 1 Combat Hostiles 1 | . . 1 Parts Melted 9 | 1 5 3 Heat Transferred 3134 | 482 1958 694 Parts Sabotaged . | . . . Parts Stolen . | . . . Parts Stripped . | . . . Power Chain Reactions . | . . . Missiles Intercepted . | . . . Alert | -11 -10 -10 ------- Run | Jun Mat Sub Peak Influence 379 | 15 379 . Initial 9 | . 9 . Average 169 | 2 188 . Maximum Alert Level 1 | . 1 . Low Security (%) 69 | 100 65 . Level 1 30 | . 34 . Level 2 . | . . . Level 3 . | . . . Level 4 . | . . . Level 5 . | . . . High Security . | . . . Max Security . | . . . Squads Dispatched 2 | . 2 . Investigation 1 | . 1 . Extermination . | . . . Reinforcement 1 | . 1 . Assault . | . . . Garrison . | . . . Intercept . | . . . Searches Triggered . | . . . Construction Impeded . | . . . Haulers Reinforced . | . . . Active Scanning Responses . | . . . Cargo Convoy Interrupts . | . . . Stealth | -11 -10 -10 --------- Run | Jun Mat Sub Distress Signals 1 | . 1 . Communications Jammed . | . . . Distress Signals . | . . . Times Spotted 38 | . 22 16 Peak Tracking Total 5 | . 5 3 Tactical Retreats . | . . . Traps | -11 -10 -10 ------- Run | Jun Mat Sub Traps Triggered 1 | . 1 . Indirectly . | . . . Trap Hack Attempts . | . . . Triggered . | . . . Disarmed . | . . . Reprogrammed . | . . . Reused . | . . . Traps Extracted . | . . . Installed . | . . . Triggered . | . . . Machines | -11 -10 -10 ---------- Run | Jun Mat Sub Machines Disabled 1 | . 1 . Max in Single Turn 1 | . 1 . Machines Repaired . | . . . Machines Sabotaged . | . . . Overloaded Fab Kills . | . . . Hacking | -11 -10 -10 --------- Run | Jun Mat Sub Machines Accessed 9 | . 9 . Terminals 7 | . 7 . Fabricators . | . . . Repair Stations . | . . . Recycling Units 2 | . 2 . Scanalyzers . | . . . Garrison Access . | . . . Total Hacks 36 | . 36 . Successful 22 | . 22 . Failed 14 | . 14 . Catastrophic 1 | . 1 . Database Lockouts . | . . . Manual 33 | . 33 . Terminals 29 | . 29 . Fabricators . | . . . Repair Stations . | . . . Recycling Units 7 | . 7 . Scanalyzers . | . . . Garrison Access . | . . . Terminal Hacks 10 | . 10 . Part Schematic 1 | . 1 . Robot Analysis 5 | . 5 . Terminal Index 1 | . 1 . Unreport Threat 1 | . 1 . Locate Traps 2 | . 2 . Fabricator Hacks . | . . . Repair Station Hacks . | . . . Recycling Unit Hacks 1 | . 1 . Retrieve Components 1 | . 1 . Scanalyzer . | . . . Garrison Access Hacks . | . . . Unauthorized Hacks 11 | . 11 . Terminals 6 | . 6 . Track 2 | . 2 . Botnet 3 | . 3 . Operators 1 | . 1 . Fabricators . | . . . Repair Stations . | . . . Recycling Units 5 | . 5 . Reject 2 | . 2 . Recyclers 1 | . 1 . Mask 2 | . 2 . Scanalyzers . | . . . Garrison Access . | . . . Data Cores Recovered 1 | . 1 . Used 1 | . 1 . Hacking Detections 7 | . 7 . Full Trace Events . | . . . Feedback Events . | . . . Feedback Blocked . | . . . Robot Schematics Acquired . | . . . Robots Built . | . . . Authchips . | . . . Time . | . . . Total Robot Build Rating . | . . . Part Schematics Acquired 1 | . 1 . Parts Built . | . . . Authchips . | . . . Time . | . . . Total Part Build Rating . | . . . Parts Repaired . | . . . Time . | . . . Parts Recycled . | . . . Recycled Matter . | . . . Retrieved Matter . | . . . Retrieved Components 9 | . 9 . Parts Scanalyzed . | . . . Part Schematics Acquired . | . . . Parts Damaged . | . . . Bothacking | -11 -10 -10 ------------ Run | Jun Mat Sub Used RIF Installer . | . . . Robots Hacked . | . . . Non-combat . | . . . Combat . | . . . Robot Hacks Applied . | . . . Relay Couplers Released . | . . . Fabnet Peak Effective % . | . . . Robots Rewired . | . . . Allies Hacked . | . . . Hacks Repelled . | . . . Allies | -11 -10 -10 -------- Run | Jun Mat Sub Total Allies . | . . . Largest Group . | . . . Highest-Rated Group . | . . . Highest-Rated Ally . | . . . Total Orders . | . . . Ally Attacks . | . . . Total Damage . | . . . Kills . | . . . Allies Corrupted . | . . . Allies Melted . | . . . Intel | -11 -10 -10 ------- Run | Jun Mat Sub Robot Analysis Total 5 | . 5 . Derelict Logs Recovered . | . . . Drone Launches . | . . . Drone Recoveries . | . . . Exploration | -11 -10 -10 ------------- Run | Jun Mat Sub Turns Passed 1418 | 72 634 712 Spaces Moved 1074 | 45 479 550 Core 19 | 19 . . Treads . | . . . Legs . | . . . Wheels 1055 | 26 479 550 Hover . | . . . Flight . | . . . Fastest Speed 50 | 50 80 90 Average Speed 94 | 67 84 104 Slowest Speed 130 | 90 90 130 Overloaded Moves . | . . . Propulsion Burnouts . | . . . Robots Hopped . | . . . Cave-ins Triggered . | . . . Exploration Rate (%) 50 | 4 94 54 Regions Visited 2 Branch Regions 1 Pre-discovered Areas 1 | . . 1 Known Exits Taken . | . . . Unknown Exits Taken 2 | 1 1 . Scrap Searched 8 | . . 8 Spaces Dug 6 | . 5 1 Terrain Destroyed 230 | . 18 212 Melee 1 | . . 1 Projectile 5 | . 5 . AOE 224 | . 13 211 Terrain Rammed . | . . . Walls Destroyed . | . . . Machines Disabled . | . . . Actions | -11 -10 -10 --------- Run | Jun Mat Sub Total 1283 | 66 589 628 Wait 21 | . 10 11 Move 1072 | 44 478 550 Hop . | . . . Pick Up 20 | 6 7 7 Fast Attach 11 | 6 3 2 Attach 6 | 1 3 2 Detach 1 | . . 1 Swap 45 | 1 24 20 Drop 16 | . 9 7 Fire 89 | 8 55 26 Melee 2 | . . 2 Ram . | . . . Kick . | . . . Crush . | . . . Escape Stasis . | . . . Rewire . | . . . Trap . | . . . Miscellaneous . | . . . Route ------- -11/Junkyard -10/Materials (discovered 5 exits: [*Mat x3] / [*Min] / [*Sub]) -10/Subcaves (discovered 2 exits: [*Mat] / [*Mat]) History --------- Turn | Location | Event 2 | -11/Junkyard | Met Revision 17 17 | -11/Junkyard | Discovered new exit (range 13) 73 | -11/Junkyard | Entered Materials 185 | -10/Materials | Discovered new exit (range 8) 245 | -10/Materials | Discovered new exit (range 3) 304 | -10/Materials | Build established: Mutant 359 | -10/Materials | Discovered new exit (range 11) 520 | -10/Materials | Core integrity fell below 50% 596 | -10/Materials | Discovered new exit (range 11) 702 | -10/Materials | Discovered new exit (range 4) 707 | -10/Materials | Entered Subcaves 796 | -10/Subcaves | Disturbed a concealed Subdweller 863 | -10/Subcaves | Shifting Twisted Machinery released Sub. Power Source 1040 | -10/Subcaves | Core integrity fell below 20% 1332 | -10/Subcaves | Discovered new exit (range 11) 1334 | -10/Subcaves | Learned location of Zion (-6) 1334 | -10/Subcaves | Met a Zionite searching for "candidates" 1363 | -10/Subcaves | Discovered new exit (range 9) 1419 | -10/Subcaves | Destroyed by QJ-DUG(R) with Subdweller Machine Gun Last Messages --------------- World map updated: -6/Zion. 01363_ EXIT=FOUND 01368_ Destroyed Lgt. Ion Engine. 01368_ S-10 Pest destroyed. 01370_ LD-420(R): "ARGHSUB!" 01371_ LD-420(R) destroyed. 01374_ DZ-7I6(R): "NAT20!" 01374_ Y-45 Defender destroyed. 01377_ Destroyed Sub. Power Source. 01383_ Destroyed Scrap Shield. 01383_ DZ-7I6(R) destroyed. 01396_ Dropped Med. Matter Pod. 01397_ Extracted 100 matter. 01397_ Acquired Med. Matter Pod. 01411_ US-V32(R): "HIDIE!" 01413_ 9B-7ZY(R) destroyed. 01417_ 52-J8J(R) suffers critical hit (Meltdown). 01417_ Sub. Monowheel melted. 01418_ QJ-DUG(R): "ARGHSUB!" 01419_ Ion Engine destroyed. Map ----- +----------------------------------------------------+ | #### ##### ### ##? | | ##### ###?### ## ### | | ####### #####?##### ### | | ###### ####???#### | | ##?## ##??????### ## | | ## ###?## ###??????## #### | | ########?## ######??????## ## ## #### | | #######??### ######???????#################### | | ?????????#########??????????#################### | | ??????????#######????????????????????????????## | | ?????????????????????????????????????????????### | | ?????????????????????????????????????????????### | | ??????????????????????????????????????????????### | | ????????????????????????????????########??????#### | | ?????????????????????????????##############????### | | ?????????????????????????????##### #####??????? | | ???????????????????????????#### ###?????? | | ?????????????#####?????????#### ###?????? | | ???????????#########???????## ##?????? | | ???????????#### # #####????## ###?????? | | ??????????### ####??### ##??????? | | ??????????### ##?###" ####????? | | ?????????? #; ;#### " #####???? | | ??????????R; #### ###???? | | ?????????? & ## ##???? | | ?????????? !%& @ ##???? | | ?????????? &&R ;## ######???? | | ?????????? ##### ###??????? | | ??????????" ;; ????######## < ##??????? | | ??????????#;;;# ?????????########### ##????### | | ??????????#######?????????????######## ####?#### | | ?????????????####???????????????????## ######## | | ????????????????????????????????????## ##### | | ????????????????????????????????????### ###" " | | ????????????????????????????????????### ###" # | | ????????????????????????????????????### #### # | | ???????????????????????????????????#### ##### # | | ???????????????????????????????????### ###### "# | | ???????????????????????????????????## ###?## | | ???????????????????????????????????### ###??##"= | | ???????????????????????????????####### ##??## "% | | ???????????????????????????????######## ##??##""[ | | ???????????????????????????????## ## ###??###[% | | ???????????????????????????????## ## ###??### " | | ???????????????????????????????## ### ###???#### | | ???????????????????????????????## ## ##???#### | | ???????????????????????????????## ##?????## | | ???????????????????????????????## ##??????? | | ???????????????????????????????### ##??????? | | ???????????????????????????????###### < ##??????? | +----------------------------------------------------+ Best States ------------- Heat Dissipation 35 Coolant Potential 50 Energy Generation 10 Energy Capacity 250 Matter Stores 300 Matter Capacity 300 Sight Range 16 Terrain Scan Range 16 Terrain Scan Density 10 Evasion (%) 50 Recoil Reduction 2 Item Schematics ----------------- Hcp. Matter Pod | -10/Materials | Hacked Robot Schematics ------------------ None Fabricated ------------ Nothing Alien Tech Used ----------------- None Achievements -------------- None Challenges ------------ None Game ------ Seed ReactionWardroneDiverter Manual? 0 Play Time 00:29:10 Cumulative 937.4 hours Start 2023.06.25 @ 14:09:39 End 2023.06.25 @ 14:37:39 Sessions 1 Manual Loads 0 Difficulty Rogue Special Mode None Game No. 489 Rogue 362 Adventurer 125 Explorer 2 Win Type - Total 109 Types 85/9/7/2/3/0/0/2/1 Lore% 82 Gallery% 89 Achievement% 82 Wizard Run 0 Options --------- ASCII 0 Keyboard 1 Movement Numpad Keybinds 0 Fullscreen 1 Font 36/TerminusFine Map View 83x50 Tactical HUD 1 Map Filters NONE Filters NONE Steam 1 RUN: 7ae2ff10-4725-4f23-8290-e6ec69ec5c4f